bitfinex-derivatives/quotes_SOLF0:USTF0_20250706
["timestamp","ask_amount","ask_price","bid_price","bid_amount"]
[1751771651588,6.7929,147.18,147.16,2.36467824]
[1751771652684,6.7931,147.17,147.16,2.36467824]
[1751771653589,6.7931,147.17,147.15,9.15877824]
[1751771654389,6.7931,147.17,147.15,2.36467824]
[1751771657490,6.7948,147.14,147.12,2.36467824]
[1751771661994,6.795,147.13,147.12,2.36467824]
[1751771662196,2.36467824,147.15,147.11,9.16027824]
[1751771662396,2.36467824,147.15,147.12,2.36467824]
[1751771662596,6.7948,147.14,147.12,2.36467824]
[1751771664200,6.7948,147.14,147.13,2.36467824]
[1751771667402,6.7943,147.15,147.13,2.36467824]
[1751771667803,6.7943,147.15,147.14,2.36467824]
[1751771668501,6.7943,147.15,147.13,2.36467824]
[1751771678316,4.72244641,147.14,147.13,2.36467824]
[1751771679714,4.72333895,147.14,147.13,2.36467824]
[1751771682620,4.72333895,147.14,147.12,6.7954]
[1751771682820,6.7943,147.15,147.13,2.36467824]
[1751771683018,4.73749706,147.14,147.13,2.36467824]
[1751771683318,4.73749706,147.14,147.11,2.36467824]
[1751771683319,21.25300769,147.14,147.11,2.36467824]
[1751771683524,18.7836238,147.13,147.11,2.36467824]
[1751771683712,4.73749706,147.12,147.1,55.08097824]
[1751771683914,6.7952,147.13,147.1,55.08097824]
[1751771684114,4.73692215,147.12,147.1,55.08097824]
[1751771684317,6.7952,147.13,147.1,55.08097824]
[1751771684519,4.73646484,147.12,147.1,55.08097824]
[1751771684820,6.7952,147.13,147.1,55.08097824]
[1751771685017,4.73646484,147.12,147.11,2.36467824]
[1751771688124,11.53206484,147.12,147.1,52.7163]
[1751771688321,6.7956,147.12,147.1,52.7163]
[1751771690420,4.73412871,147.11,147.1,52.7163]
[1751771690622,4.73412871,147.11,147.1,45.92]
[1751771691418,13.89470695,147.11,147.1,45.92]
[1751771691614,16.40806869,147.11,147.08,6.7972]
[1751771691822,4.73332549,147.1,147.08,6.7972]
[1751771692123,2.36467824,147.11,147.08,6.7972]
[1751771692320,4.73366894,147.1,147.08,6.7972]
[1751771692517,9.16077824,147.11,147.08,6.7972]
[1751771692719,4.73252611,147.1,147.08,6.7972]
[1751771692923,9.16077824,147.11,147.08,6.7972]
[1751771693124,4.73252611,147.1,147.08,6.7972]
[1751771693321,9.16077824,147.11,147.08,6.7972]
[1751771695223,6.7961,147.11,147.09,6.7968]
[1751771695423,9.16077824,147.11,147.09,6.7968]
[1751771700027,6.7961,147.11,147.09,6.7968]
[1751771701329,6.7961,147.11,147.08,9.16177824]
[1751771702826,6.7964,147.1,147.08,2.36467824]
[1751771703026,6.7964,147.1,147.07,9.16217824]
[1751771704327,2.36467824,147.12,147.08,2.36467824]
[1751771704630,4.69462801,147.11,147.08,2.36467824]
[1751771704832,2.36467824,147.12,147.08,2.36467824]
[1751771705128,4.69481449,147.11,147.09,6.7968]
[1751771705333,2.36467824,147.13,147.09,2.36467824]
[1751771705530,13.53306662,147.12,147.09,2.36467824]
[1751771705726,9.15997824,147.13,147.1,6.7962]
[1751771706324,2.36467824,147.15,147.11,2.36467824]
[1751771706526,2.36467824,147.16,147.12,2.36467824]
[1751771706731,8.83954508,147.15,147.12,2.36467824]
[1751771706934,2.36467824,147.16,147.12,2.36467824]
[1751771707232,8.84008457,147.15,147.12,2.36467824]
[1751771707432,2.36467824,147.16,147.12,2.36467824]
[1751771707634,15.63438614,147.15,147.12,9.15987824]
[1751771707935,6.7943,147.15,147.12,9.15987824]
[1751771708235,6.7942,147.15,147.12,2.36467824]
[1751771709938,6.7942,147.15,147.11,6.7956]
[1751771710134,6.7942,147.15,147.12,2.36467824]
[1751771711239,6.7942,147.15,147.12,9.15997824]
[1751771713037,2.36467824,147.16,147.13,6.7949]
[1751771713235,8.84049834,147.15,147.13,9.15957824]
[1751771713436,6.7938,147.16,147.13,9.15957824]
[1751771713636,8.84072556,147.15,147.13,9.15957824]
[1751771713831,6.7938,147.16,147.13,9.15957824]
[1751771714037,8.84072556,147.15,147.13,9.15957824]
[1751771714238,6.7938,147.16,147.13,9.15957824]
[1751771716447,6.7929,147.18,147.15,2.36467824]
[1751771716740,68.9997891,147.21,147.17,2.36467824]
[1751771716953,8.86317111,147.2,147.17,2.36467824]
[1751771717142,8.86317111,147.19,147.17,2.36467824]
[1751771717446,6.792,147.2,147.17,2.36467824]
[1751771718950,6.7922,147.19,147.17,2.36467824]
[1751771720351,6.7927,147.18,147.17,2.36467824]
[1751771720745,68.9997891,147.21,147.17,2.36467824]
[1751771720951,6.7926,147.19,147.14,45.9]
[1751771721146,2.36467824,147.2,147.14,45.9]
[1751771721348,2.36467824,147.2,147.16,2.36467824]
[1751771721649,6.7923,147.19,147.16,2.36467824]
[1751771722351,6.7928,147.18,147.16,2.36467824]
[1751771734561,2.36467824,147.18,147.14,45.9]
[1751771734765,2.36467824,147.17,147.14,45.9]
[1751771735266,6.7936,147.16,147.14,45.9]
[1751771740069,6.7941,147.15,147.14,45.9]
[1751771742670,9.4944302,147.21,147.14,55.05917824]
[1751771742866,2.36467824,147.18,147.15,2.36467824]
[1751771743267,6.7934,147.17,147.14,55.05917824]
[1751771746870,6.7934,147.17,147.14,52.6945]
[1751771747076,9.15807824,147.17,147.14,55.05917824]
[1751771748477,9.15807824,147.17,147.15,6.7941]
[1751771748676,6.7934,147.17,147.15,6.7941]
[1751771753377,6.7934,147.17,147.14,48.26467824]
[1751771753875,4.74273883,147.16,147.14,55.05897824]
[1751771754175,6.7934,147.17,147.14,55.05897824]
[1751771754483,4.75682467,147.16,147.14,55.05897824]
[1751771754675,6.7934,147.17,147.14,55.05897824]
[1751771754877,4.75682467,147.16,147.15,6.7941]
[1751771755180,4.75682467,147.16,147.15,9.15877824]
[1751771756484,4.75799158,147.16,147.15,9.15877824]
[1751771761692,6.7925,147.19,147.16,6.7936]
[1751771761888,21.19689331,147.18,147.17,2.36467824]
[1751771763790,21.19689331,147.18,147.17,9.15777824]
[1751771763995,13.63482637,147.18,147.17,9.15777824]
[1751771764293,4.7185027,147.18,147.17,2.36467824]
[1751771766690,4.7185027,147.18,147.17,9.15777824]
[1751771767890,6.7915,147.21,147.18,6.7925]
[1751771768094,13.59439844,147.2,147.18,6.7925]
[1751771768295,6.7915,147.21,147.19,2.36467824]
[1751771768494,13.59224691,147.2,147.19,2.36467824]
[1751771769192,4.72754858,147.2,147.19,2.36467824]
[1751771773395,4.72754858,147.2,147.18,6.7925]
[1751771773396,4.72754858,147.2,147.18,9.15717824]
[1751771773698,6.7915,147.21,147.18,9.15717824]
[1751771773893,4.73491861,147.2,147.18,9.15717824]
[1751771774093,6.7915,147.21,147.18,9.15717824]
[1751771774392,4.73477064,147.2,147.18,9.15717824]
[1751771774594,6.7915,147.21,147.18,9.15717824]
[1751771774892,4.73430272,147.2,147.18,9.15717824]
[1751771775193,6.7915,147.21,147.18,9.15717824]
[1751771775392,4.73373103,147.2,147.18,9.15717824]
[1751771775594,6.7915,147.21,147.18,9.15717824]
[1751771775898,4.73373103,147.2,147.18,9.15717824]
[1751771776091,6.7915,147.21,147.18,9.15717824]
[1751771776293,4.73356073,147.2,147.18,9.15717824]
[1751771776489,6.7915,147.21,147.18,9.15717824]
[1751771776799,4.73312164,147.2,147.18,9.15717824]
[1751771777003,6.7915,147.21,147.18,9.15717824]
[1751771777201,4.75531096,147.2,147.18,9.15717824]
[1751771777402,6.7915,147.21,147.18,9.15717824]
[1751771777604,4.7551305,147.2,147.18,9.15717824]
[1751771777905,6.7915,147.21,147.18,9.15717824]
[1751771778097,11.5469305,147.2,147.18,9.15717824]
[1751771778298,6.7918,147.2,147.18,2.36467824]
[1751771779502,6.7918,147.2,147.18,9.15727824]
[1751771784505,6.7915,147.21,147.18,9.15727824]
[1751771785206,4.73609624,147.2,147.18,9.15727824]
[1751771785406,6.7915,147.21,147.18,9.15727824]
[1751771785703,4.73601859,147.2,147.18,9.15727824]
[1751771785906,6.7915,147.21,147.18,9.15727824]
[1751771786104,4.7360186,147.2,147.18,9.15727824]
[1751771786306,6.7915,147.21,147.18,9.15727824]
[1751771786502,4.73619455,147.2,147.19,2.36467824]
[1751771796512,11.52799455,147.2,147.19,2.36467824]
[1751771800611,4.73619455,147.2,147.14,45.9]
[1751771800813,4.73619455,147.19,147.17,2.36467824]
[1751771801013,2.36467824,147.2,147.17,2.36467824]
[1751771801212,4.73070639,147.19,147.17,2.36467824]
[1751771801516,6.7926,147.19,147.17,2.36467824]
[1751771802319,4.73233596,147.18,147.17,9.15767824]
[1751771806817,4.73426845,147.18,147.17,9.15767824]
[1751771807016,6.7926,147.19,147.17,9.15767824]
[1751771807520,4.7366208,147.18,147.17,9.15767824]
[1751771809727,4.73805052,147.18,147.17,2.36467824]
[1751771810423,4.73805052,147.18,147.17,9.15777824]
[1751771813324,4.73805052,147.18,147.17,2.36467824]
[1751771814326,6.7926,147.19,147.17,2.36467824]
[1751771814526,4.73794403,147.18,147.17,2.36467824]
[1751771821026,6.7926,147.19,147.17,2.36467824]
[1751771821229,4.72475212,147.18,147.17,2.36467824]
[1751771826537,4.72475212,147.18,147.16,6.7935]
[1751771826835,6.7926,147.19,147.17,2.36467824]
[1751771827031,4.74697889,147.18,147.17,2.36467824]
[1751771827435,4.74697889,147.18,147.17,9.15777824]
[1751771828236,6.792,147.2,147.17,9.15777824]
[1751771828435,4.74666966,147.19,147.18,2.36467824]
[1751771840352,11.53886966,147.19,147.18,2.36467824]
[1751771840747,20.39921673,147.19,147.18,2.36467824]
[1751771843448,20.39921673,147.19,147.17,9.15777824]
[1751771843648,4.74666966,147.18,147.17,9.15777824]
[1751771845056,4.74089839,147.18,147.17,9.15777824]
[1751771847053,13.60259808,147.18,147.17,9.15777824]
[1751771851159,13.60259808,147.18,147.17,2.36467824]
[1751771852560,13.60259808,147.18,147.17,9.15777824]
[1751771853661,8.86169969,147.18,147.17,9.15777824]
[1751771853861,13.60218623,147.18,147.17,9.15777824]
[1751771855865,13.60218623,147.18,147.17,6.7931]
[1751771856064,13.60218623,147.18,147.17,9.15777824]
[1751771856666,13.60201937,147.18,147.17,9.15777824]
[1751771859366,13.59146451,147.18,147.17,9.15777824]
[1751771859564,8.85114483,147.18,147.17,9.15777824]
[1751771859767,13.59131156,147.18,147.17,9.15777824]
[1751771865669,13.57959324,147.18,147.17,9.15777824]
[1751771866172,4.72844841,147.18,147.17,9.15777824]
[1751771867970,4.72844841,147.18,147.17,9.15498576]
[1751771876172,4.7046,147.22,147.19,6.792]
[1751771876469,16.01145428,147.21,147.19,9.15388576]
[1751771876674,13.56652902,147.2,147.19,9.15388576]
[1751771876876,13.56652902,147.2,147.19,9.15319687]
[1751771879477,13.56652902,147.2,147.19,6.792]
[1751771879676,13.56652902,147.2,147.19,9.15319687]
[1751771880975,13.5176313,147.2,147.19,9.15319687]
[1751771886382,8.78661171,147.2,147.19,9.15319687]
[1751771889385,13.3209361,147.2,147.19,9.15319687]
[1751771891186,13.3209361,147.2,147.16,45.86]
[1751771891384,2.36119687,147.21,147.17,2.36119687]
[1751771891582,13.32617063,147.2,147.17,2.36119687]
[1751771891885,6.7921,147.2,147.17,9.15409687]
[1751771892387,6.7921,147.2,147.18,2.36119687]
[1751771893189,9.15269687,147.21,147.18,2.36119687]
[1751771893377,13.32624129,147.2,147.18,2.36119687]
[1751771893582,9.15269687,147.21,147.18,2.36119687]
[1751771893784,13.32624129,147.2,147.18,9.15379687]
[1751771894078,9.15269687,147.21,147.18,9.15379687]
[1751771894283,13.32622816,147.2,147.18,9.15379687]
[1751771894486,9.15269687,147.21,147.18,9.15379687]
[1751771894786,13.32630492,147.2,147.18,9.15379687]
[1751771894986,9.15269687,147.21,147.18,9.15379687]
[1751771895186,13.32630492,147.2,147.18,9.15379687]
[1751771895385,9.15269687,147.21,147.18,9.15379687]
[1751771895587,13.32638764,147.2,147.18,9.15379687]
[1751771895789,9.15269687,147.21,147.18,9.15379687]
[1751771895983,13.32638764,147.2,147.18,9.15379687]
[1751771896187,9.15269687,147.21,147.18,9.15379687]
[1751771896481,13.31722349,147.2,147.18,9.15379687]
[1751771896784,9.15269687,147.21,147.18,9.15379687]
[1751771896986,13.31733738,147.2,147.18,9.15379687]
[1751771897185,9.15269687,147.21,147.18,9.15379687]
[1751771897491,13.31747312,147.2,147.18,9.15379687]
[1751771897690,9.15269687,147.21,147.18,9.15379687]
[1751771897893,13.30634474,147.2,147.18,9.15379687]
[1751771898096,9.15269687,147.21,147.18,9.15379687]
[1751771898292,13.30631062,147.2,147.18,9.15379687]
[1751771898492,6.7915,147.21,147.18,9.15379687]
[1751771898693,13.29736754,147.2,147.18,9.15379687]
[1751771898895,6.7915,147.21,147.18,9.15379687]
[1751771899096,13.29736718,147.2,147.18,9.15379687]
[1751771899394,6.7915,147.21,147.18,9.15379687]
[1751771899689,13.29752906,147.2,147.19,6.7922]
[1751771901200,8.77420331,147.2,147.19,6.7922]
[1751771901398,13.29767429,147.2,147.19,6.7922]
[1751771901698,4.52347098,147.2,147.19,6.7922]
[1751771901898,15.65911292,147.2,147.16,48.22119687]
[1751771902100,2.36119687,147.2,147.16,48.22119687]
[1751771902293,2.36119687,147.2,147.17,6.7929]
[1751771902499,4.92547141,147.19,147.17,6.7929]
[1751771902697,4.92547141,147.18,147.17,6.7929]
[1751771904494,4.92547141,147.18,147.17,9.15409687]
[1751771905301,9.15319687,147.2,147.17,9.15409687]
[1751771905501,4.92579314,147.19,147.17,9.15409687]
[1751771905802,4.92579314,147.18,147.17,9.15409687]
[1751771913504,9.15269687,147.21,147.18,6.7926]
[1751771913704,16.16064888,147.2,147.18,6.7926]
[1751771914005,13.71396939,147.19,147.18,6.7926]
[1751771918809,13.71396939,147.19,147.18,9.15379687]
[1751771920711,13.71396939,147.19,147.18,6.7926]
[1751771920913,13.55272516,147.19,147.18,6.7926]
[1751771922815,13.55272516,147.19,147.17,9.15409687]
[1751771923017,4.78449677,147.18,147.17,9.15409687]
[1751771923816,4.78465824,147.18,147.17,9.15409687]
[1751771924311,4.78473568,147.18,147.17,9.15409687]
[1751771925817,4.78473568,147.18,147.17,6.7929]
[1751771938428,4.78473568,147.18,147.16,45.86]
[1751771938629,15.93358806,147.17,147.16,45.86]
[1751771938829,18.29664777,147.17,147.16,45.86]
[1751771939124,15.84266868,147.17,147.16,52.6536]
[1751771939319,13.47960897,147.17,147.16,52.6536]
[1751771939523,4.71090073,147.17,147.16,52.6536]
[1751771947332,4.71090073,147.17,147.16,45.86]
[1751771950034,7.07396044,147.17,147.12,48.18305971]
[1751771950226,9.52518678,147.16,147.12,48.18305971]
[1751771950425,9.53741873,147.2,147.12,45.82]
[1751771950426,15.83145426,147.15,147.12,45.82]
[1751771950626,11.50580073,147.14,147.12,45.82]
[1751771950930,6.7949,147.14,147.12,45.82]
[1751771952138,4.66805935,147.13,147.12,45.82]
[1751771952341,6.795,147.13,147.12,45.82]
[1751771952542,7.02866685,147.13,147.08,45.84]
[1751771952733,2.36305971,147.11,147.07,48.20305971]
[1751771952929,9.15925971,147.11,147.07,240.04]
[1751771953133,9.15925971,147.11,147.07,48.20305971]
[1751771953735,9.15925971,147.11,147.08,6.7973]
[1751771954135,2.36305971,147.11,147.07,45.84]
[1751771954340,2.36305971,147.1,147.07,45.84]
[1751771955333,6.7969,147.09,147.07,52.6377]
[1751771957337,9.15955971,147.1,147.07,52.6377]
[1751771960233,6.797,147.09,147.07,45.84]
[1751771960437,2.36305971,147.1,147.07,45.84]
[1751771960935,2.36305971,147.09,147.07,52.6377]
[1751771969551,9.15985971,147.09,147.07,52.6377]
[1751771970556,6.7973,147.08,147.07,45.84]
[1751771970851,9.16035971,147.08,147.07,45.84]
[1751771971048,2.36305971,147.08,147.04,2.36305971]
[1751771971248,2.36305971,147.07,147.04,2.36305971]
[1751771971648,116.67234257,147.11,147.03,634.96305971]
[1751771971852,2.36305971,147.08,147.04,2.36305971]
[1751771972554,9.16065971,147.08,147.05,6.7984]
[1751771975958,6.7978,147.07,147.05,6.7984]
[1751771976759,6.7978,147.07,147.04,9.16195971]
[1751771977551,9.16055971,147.08,147.05,6.7986]
[1751771978958,6.7978,147.07,147.05,6.7986]
[1751771981458,9.16135971,147.06,147.03,632.6]
[1751771981760,9.16135971,147.06,147.03,45.86]
[1751771981956,9.16135971,147.06,147.03,52.6593]
[1751771989665,6.7987,147.05,147.03,52.6593]
[1751771992070,9.16175971,147.05,147.03,52.6593]
[1751771994573,9.16175971,147.05,147.03,45.86]
[1751771995072,6.7987,147.05,147.03,45.86]
[1751771997470,9.1655594,147.05,147.03,45.86]
[1751771999776,2.3668594,147.05,146.99,45.86]
[1751771999973,2.3668594,147.05,147.0,194.34]
[1751772000173,2.3668594,147.05,146.99,48.2268594]
[1751772000482,45.86,147.09,147.02,2.3668594]
[1751772000668,2.3668594,147.07,147.02,2.3668594]
[1751772000872,6.7987,147.06,147.03,6.7994]
[1751772001076,2.3668594,147.07,147.03,6.7994]
[1751772001573,6.7994,147.04,147.0,194.34]
[1751772001979,6.7988,147.05,147.02,6.7997]
[1751772002279,6.7988,147.05,147.01,2.3668594]
[1751772003078,6.7988,147.05,147.02,6.8]
[1751772005788,9.1652594,147.06,147.03,6.7996]
[1751772006285,6.7987,147.05,147.02,6.8]
[1751772007781,2.3668594,147.06,147.01,6.8003]
[1751772007985,2.3668594,147.04,147.01,6.8003]
[1751772008488,9.1661594,147.04,147.01,6.8003]
[1751772009886,9.16684148,147.03,147.0,6.8009]
[1751772010086,9.16684148,147.03,147.0,201.3609]
[1751772010883,9.16684148,147.03,147.0,6.8009]
[1751772011285,9.16724148,147.02,147.0,6.8009]
[1751772011986,9.16724148,147.02,146.99,6.8011]
[1751772012691,9.16764148,147.01,146.98,247.3617]
[1751772013086,2.36714148,147.01,146.98,240.56]
[1751772013291,2.36714148,147.01,146.99,6.8014]
[1751772014191,9.16784148,147.01,146.98,247.4017]
[1751772014391,9.16784148,147.01,146.98,247.3817]
[1751772015291,6.8011,147.0,146.98,45.96]
[1751772015888,9.16824148,147.0,146.98,45.96]
[1751772016691,9.16824148,147.0,146.97,9.16934148]
[1751772016991,9.16824148,147.0,146.97,203.80934148]
[1751772017191,9.16824148,147.0,146.97,6.8022]
[1751772018480,6.8015,146.99,146.97,6.8022]
[1751772019191,6.802,146.98,146.96,6.8026]
[1751772019388,2.36714148,146.99,146.96,6.8026]
[1751772019882,9.16884148,146.99,146.96,6.8026]
[1751772021285,6.802,146.98,146.96,6.8026]
[1751772021492,6.802,146.98,146.95,9.17024148]
[1751772021689,2.36714148,146.96,146.94,45.98]
[1751772021888,9.17044148,146.95,146.94,45.98]
[1751772022290,45.98,147.01,146.92,197.10714148]
[1751772022493,2.36714148,146.97,146.93,2.36714148]
[1751772023195,2.36714148,146.98,146.94,2.36714148]
[1751772023688,2.36714148,146.97,146.93,2.36714148]
[1751772024285,2.36714148,146.97,146.93,9.17094148]
[1751772024796,7.30881307,147.0,146.94,6.8037]
[1751772025089,2.36714148,146.97,146.94,6.8037]
[1751772025489,9.16984148,146.97,146.94,6.8037]
[1751772026995,9.16984148,146.97,146.93,9.17114148]
[1751772027396,9.16984148,146.97,146.93,2.36714148]
[1751772028396,9.16984148,146.97,146.94,6.8037]
[1751772030401,9.17014148,146.96,146.93,9.17134148]
[1751772033501,9.17014148,146.96,146.94,6.8037]
[1751772035001,2.36714148,146.96,146.93,2.36714148]
[1751772035205,2.36714148,146.99,146.95,2.36714148]
[1751772035406,2.36714148,146.99,146.92,194.74]
[1751772035407,2.36714148,146.99,146.96,2.36714148]
[1751772035606,2.36714148,146.99,146.92,194.74]
[1751772035803,2.36714148,146.99,146.96,2.36714148]
[1751772036005,2.36714148,146.99,146.95,2.36714148]
[1751772036609,6.802,146.98,146.95,9.17004148]
[1751772037605,2.36714148,146.99,146.95,2.36714148]
[1751772037810,2.36714148,147.0,146.96,2.36714148]
[1751772038311,6.8019,146.98,146.96,2.36714148]
[1751772041417,6.8016,146.99,146.96,2.36714148]
[1751772044016,6.8016,146.99,146.96,9.16984148]
[1751772052523,2.2714,147.02,146.97,2.36714148]
[1751772052724,4.63854148,147.02,146.97,2.36714148]
[1751772052921,9.16744148,147.02,146.98,9.16864148]
[1751772053124,9.16744148,147.02,146.98,2.36714148]
[1751772053521,9.16744148,147.02,146.99,6.8013]
[1751772053823,9.16744148,147.02,146.98,2.36714148]
[1751772054024,6.8003,147.02,146.98,2.36714148]
[1751772055628,6.8003,147.02,146.99,6.8014]
[1751772055925,2.36714148,147.04,146.99,2.36714148]
[1751772056125,11.7502138,147.03,147.0,9.16784148]
[1751772056321,4.45403065,147.02,147.0,9.16784148]
[1751772056523,6.86754148,147.05,147.0,9.16784148]
[1751772056726,27.13513525,147.04,147.0,9.16784148]
[1751772056926,11.75242896,147.03,147.0,9.16784148]
[1751772057129,4.4548388,147.02,147.0,9.16784148]
[1751772057327,6.7995,147.04,147.0,9.16784148]
[1751772059128,6.7997,147.03,147.0,9.16784148]
[1751772067135,6.7997,147.03,147.0,2.36714148]
[1751772071040,6.8001,147.02,147.0,2.36714148]
[1751772075546,6.7998,147.03,147.0,9.16804148]
[1751772078140,2.36714148,147.03,146.97,46.0]
[1751772078340,2.36714148,147.01,146.97,48.36714148]
[1751772079134,9.16774148,147.01,146.98,6.8016]
[1751772080340,6.8006,147.01,146.98,9.16874148]
[1751772080641,9.16744148,147.02,146.99,6.8014]
[1751772086452,6.8003,147.02,146.99,9.16854148]
[1751772087946,6.8003,147.02,146.99,6.8014]
[1751772088250,6.8006,147.01,146.98,9.16884148]
[1751772088957,6.801,147.0,146.97,52.8022]
[1751772089252,6.801,147.0,146.97,55.16934148]
[1751772093155,6.8007,147.01,146.98,6.8018]
[1751772093356,6.8007,147.01,146.98,9.16894148]
[1751772098560,9.16744148,147.02,146.99,6.8014]
[1751772098869,6.8003,147.02,146.99,9.16854148]
[1751772099763,6.8003,147.02,147.0,2.36714148]
[1751772100064,2.36714148,147.04,147.0,9.16814148]
[1751772100065,6.7998,147.03,147.0,9.16814148]
[1751772100968,6.7993,147.04,147.01,9.16754148]
[1751772101161,2.36714148,147.06,147.02,2.36714148]
[1751772101362,8.53901099,147.05,147.02,2.36714148]
[1751772101559,2.36714148,147.06,147.02,2.36714148]
[1751772101868,15.82124731,147.05,147.02,2.36714148]
[1751772102065,2.36714148,147.06,147.02,2.36714148]
[1751772102262,27.02696609,147.05,147.02,2.36714148]
[1751772102462,2.36714148,147.06,147.02,2.36714148]
[1751772102659,20.23914027,147.05,147.02,2.36714148]
[1751772102966,2.36714148,147.06,147.02,2.36714148]
[1751772103167,20.25043429,147.05,147.02,2.36714148]
[1751772103366,2.36714148,147.06,147.02,2.36714148]
[1751772103567,6.7993,147.04,147.02,2.36714148]
[1751772109973,2.36714148,147.06,146.97,46.0]
[1751772110175,2.36714148,147.04,147.0,2.36714148]
[1751772111572,6.8002,147.02,147.0,2.36714148]
[1751772114274,2.36714148,147.03,146.97,46.0]
[1751772114471,2.36714148,147.02,146.97,46.0]
[1751772114672,15.39847841,147.01,146.97,48.36714148]
[1751772114973,2.36714148,147.01,146.97,48.36714148]
[1751772115474,9.16784148,147.01,146.97,55.16914148]
[1751772117373,9.16784148,147.01,146.98,6.8019]
[1751772120173,9.16784148,147.01,146.98,9.16904148]
[1751772120674,2.36714148,147.03,146.99,2.36714148]
[1751772120877,8.57830491,147.02,146.99,2.36714148]
[1751772121071,9.16704148,147.03,146.99,2.36714148]
[1751772121267,9.16704148,147.03,146.99,9.16834148]
[1751772123571,6.7999,147.03,147.0,2.36714148]
[1751772123973,6.7999,147.03,147.0,9.16794148]
[1751772124178,2.36714148,147.06,147.02,2.36714148]
[1751772124369,20.30961934,147.05,147.02,2.36714148]
[1751772124575,13.00325079,147.04,147.02,9.16714148]
[1751772124877,9.16564148,147.06,147.02,9.16714148]
[1751772125071,20.30784478,147.05,147.02,9.16714148]
[1751772125275,13.00206278,147.04,147.02,9.16714148]
[1751772125477,9.16564148,147.06,147.02,9.16714148]
[1751772125678,20.3091076,147.05,147.02,9.16714148]
[1751772125875,4.42270096,147.04,147.02,9.16714148]
[1751772126075,9.16564148,147.06,147.02,9.16714148]
[1751772126274,20.3091096,147.05,147.02,9.16714148]
[1751772126479,4.42270171,147.04,147.02,9.16714148]
[1751772126678,9.16564148,147.06,147.02,9.16714148]
[1751772126879,20.30880723,147.05,147.02,9.16714148]
[1751772127076,9.16564148,147.06,147.02,9.16714148]
[1751772127380,13.00301915,147.05,147.02,9.16714148]
[1751772127580,9.16564148,147.06,147.02,9.16714148]
[1751772127979,8.57864009,147.05,147.01,2.36714148]
[1751772128179,8.57862564,147.04,147.01,2.36714148]
[1751772128377,2.36714148,147.06,147.01,2.36714148]
[1751772128579,13.00124255,147.05,147.01,2.36714148]
[1751772128777,10.94559865,147.04,146.99,2.36714148]
[1751772128981,2.36714148,147.03,146.99,2.36714148]
[1751772129384,6.8003,147.02,146.99,2.36714148]
[1751772130979,2.36714148,147.03,146.98,6.8016]
[1751772131186,6.8006,147.01,146.98,2.36714148]
[1751772134289,6.8006,147.01,146.98,9.16894148]
[1751772134989,2.36714148,147.02,146.98,9.16894148]
[1751772135379,2.36714148,147.02,146.99,6.8014]
[1751772136390,9.16714148,147.03,147.0,6.801]
[1751772136584,2.36714148,147.03,146.99,2.36714148]
[1751772136789,2.2452,147.05,147.01,2.36714148]
[1751772136985,20.29534169,147.04,147.01,2.36714148]
[1751772137191,4.61234148,147.05,147.01,9.16744148]
[1751772137491,20.29558137,147.04,147.01,9.16744148]
[1751772137792,11.41134148,147.05,147.02,6.8]
[1751772138093,20.29597058,147.04,147.02,6.8]
[1751772138294,11.41134148,147.05,147.02,6.8]
[1751772138483,20.29644736,147.04,147.02,6.8]
[1751772138788,11.41134148,147.05,147.02,6.8]
[1751772139085,20.29644736,147.04,147.02,6.8]
[1751772139284,11.41134148,147.05,147.02,6.8]
[1751772139485,20.29684849,147.04,147.02,6.8]
[1751772139685,11.41134148,147.05,147.02,6.8]
[1751772139883,20.30975615,147.04,147.02,6.8]
[1751772140087,11.41134148,147.05,147.02,6.8]
[1751772140390,20.30979158,147.04,147.02,6.8]
[1751772140690,11.41134148,147.05,147.02,6.8]
[1751772140888,20.3121885,147.04,147.02,6.8]
[1751772141091,6.7992,147.04,147.02,6.8]
[1751772142696,11.41124148,147.05,147.02,6.8]
[1751772142991,2.3547,147.07,147.02,2.36714148]
[1751772143294,22.70322119,147.06,147.02,2.36714148]
[1751772143494,22.70322119,147.06,147.03,6.7993]
[1751772143495,9.16544148,147.06,147.03,6.7993]
[1751772145496,9.16584148,147.05,147.02,6.7999]
[1751772146895,6.7987,147.05,147.02,6.7999]
[1751772147195,9.16584148,147.05,147.02,6.7999]
[1751772148399,9.16584148,147.05,147.01,2.36714148]
[1751772148400,9.16634148,147.04,147.01,6.8004]
[1751772150000,6.7996,147.03,147.0,9.16794148]
[1751772151201,6.8001,147.02,147.0,2.36714148]
[1751772151502,2.36714148,147.04,147.0,2.36714148]
[1751772152510,6.7998,147.03,147.0,9.16784148]